[Event "44th Chess Olympiad Open 2022"]
[Site "Chennai"]
[Date "2022.08.02"]
[Round "5.26"]
[White "Bwalya, Gillan"]
[Black "Carlsen, Magnus"]
[Result "0-1"]
[WhiteElo "2396"]
[BlackElo "2864"]
[Annotator "TA"]
[PlyCount "52"]
[EventDate "2022.??.??"]
[TimeControl "60"]

{[%evp 17,51,0,0,0,0,0,0,-78,-22,-62,-67,-87,-70,-59,-62,-77,-65,-91,-83,-89,
-73,-150,-145,-172,-172,-260,-241,-399,-359,-614,-613,-1820,-1713,-29998,
-29999,-29999]} 1. d4 {[%emt 0:00:02]} Nf6 {[%emt 0:00:13]} 2. c4 {[%emt 0:00:
00]} e6 {[%emt 0:00:10]} 3. Nc3 {[%emt 0:02:15]} d5 {[%emt 0:01:32]} 4. Nf3 {
[%emt 0:00:09]} Bb4 {[%emt 0:01:58]} 5. e3 {[%emt 0:05:47]} O-O {[%emt 0:00:27]
} 6. a3 {[%emt 0:02:42]} Bxc3+ {[%emt 0:06:02]} 7. bxc3 {[%emt 0:00:16]} c5 {
[%emt 0:00:05]} 8. Bd3 {[%emt 0:02:55]} dxc4 {[%emt 0:00:19]} 9. Bxc4 {[%emt 0:
00:00]} Qc7 {[%emt 0:00:08]} 10. Nd2 {[%emt 0:05:12] E53: Nimzo-Indian:
Rubinstein: Main Line (4...0-0 5 Nf3 d5 6 Bd3 c5 7 0-0).} Nc6 {[%emt 0:05:28]}
11. O-O {[%emt 0:00:37]} Rd8 {[%emt 0:03:07][%cal Rc5d4]} 12. f4 {[%emt 0:00:
00]} (12. Bb2 $11) 12... Nd5 {[%emt 0:12:42]} (12... Na5 $17 {aiming for ...
cxd4.} 13. Ba2 b6) 13. Bxd5 {[%emt 0:19:20]} exd5 {[%emt 0:00:15] [#]} 14. Qh5
$146 {[%emt 0:02:47]} ({Predecessor:} 14. dxc5 Na5 15. f5 Qxc5 16. f6 Qxe3+ 17.
Kh1 Qxc3 18. Rb1 Qd3 19. Qe1 Bf5 20. Rf3 {0-1 (84) Smyslov,V (2570)-Van
Riemsdijk,H (2440) Manila 1990}) 14... cxd4 {[%emt 0:04:50]} 15. cxd4 {[%emt 0:
00:00]} Ne7 {[%emt 0:01:08]} 16. Nf3 {[%emt 0:06:48]} Bf5 {[%emt 0:01:04]} 17.
Bd2 {[%emt 0:01:07]} f6 {[%emt 0:00:43]} 18. Nh4 {[%emt 0:05:06]} Be4 {[%emt 0:
00:00]} 19. f5 {[%emt 0:00:37]} ({White should try} 19. Qg4) 19... Rac8 $17 {
[%emt 0:01:07]} 20. Bb4 {[%emt 0:06:19]} a5 {[%emt 0:00:44]} 21. Bxe7 {[%emt 0:
00:00]} (21. Be1 $142) 21... Qxe7 $19 {[%emt 0:00:02]} 22. Rf4 $2 {[%emt 0:00:
00] [#]} (22. Qe2 {was worth a try.}) 22... Rc3 {[%emt 0:01:21]} 23. Re1 $2 {
[%emt 0:03:46]} (23. a4) 23... Qxa3 {[%emt 0:01:41]} 24. Rg4 {[%emt 0:04:41]}
Rc1 {[%emt 0:00:37] Active counter play!} 25. Rxc1 {[%emt 0:00:16]} Qxe3+ {
[%emt 0:00:02]} 26. Kf1 {[%emt 0:00:09]} Bd3# {[%emt 0:00:40] Black took
control after the opening. Weighted Error Value: White=1.04/Black=0.12 (very
precise)} 0-1

[Event "44th Chess Olympiad Open 2022"]
[Site "Chennai"]
[Date "2022.08.02"]
[Round "5.26"]
[White "Lungu, Nase"]
[Black "Hammer, Jon Ludvig"]
[Result "1/2-1/2"]
[WhiteElo "2216"]
[BlackElo "2638"]
[Annotator "TA"]
[PlyCount "79"]
[EventDate "2022.??.??"]
[TimeControl "60"]

{[%evp 15,79,-10,-4,0,21,-2,-5,-8,-6,-6,-10,-18,-18,-18,-26,-46,-18,-46,-46,
-55,-44,-54,-60,-87,-87,-76,-82,-125,-125,-127,-121,-141,-127,-111,-115,-137,
-131,-142,-140,-143,-122,-124,-129,-168,-170,-161,-135,-160,0,0,0,0,0,0,0,0,0,
0,0,0,0,0,0,0,0,0]} 1. c4 {[%emt 0:00:05]} e5 {[%emt 0:00:08]} 2. g3 {[%emt 0:
00:00]} c6 {[%emt 0:02:12]} 3. Nf3 {[%emt 0:05:33]} e4 {[%emt 0:00:08]} 4. Nd4
{[%emt 0:00:04]} d5 {[%emt 0:00:13]} 5. cxd5 {[%emt 0:00:06]} Qxd5 {[%emt 0:00:
00]} 6. Nc2 {[%emt 0:00:05]} Nf6 {[%emt 0:02:23]} 7. Bg2 {[%emt 0:00:28]} Qh5 {
[%emt 0:04:02]} 8. h3 {[%emt 0:00:09]} Qg6 {[%emt 0:03:27]} 9. Nc3 {[%emt 0:00:
00] A20: English Opening: 1...e5.} Na6 {[%emt 0:08:27]} 10. O-O {[%emt 0:26:56]
[#]} Bc5 $146 {[%emt 0:11:55][%cal Yc8h3] And now ...Bxh3! would win.} ({
Predecessor:} 10... Bd6 11. d3 exd3 12. Ne1 Qh5 13. Nxd3 Bxh3 14. Bf4 Bxg2 15.
Kxg2 O-O-O 16. Qa4 Bxf4 17. Nxf4 {0-1 (49) Melkumyan,H (2655)-Izoria,Z (2602)
Chess.com INT 2022}) 11. d4 {[%emt 0:07:01]} exd3 {[%emt 0:04:11]} 12. Qxd3 {
[%emt 0:00:18]} Qxd3 {[%emt 0:00:11]} 13. exd3 {[%emt 0:00:04]} Be6 {[%emt 0:
00:00]} 14. Bg5 {[%emt 0:05:29]} O-O-O {[%emt 0:02:11]} 15. Rfd1 {[%emt 0:00:
00]} Be7 {[%emt 0:11:39]} 16. d4 {[%emt 0:05:30][%cal Yd4d5]} Nc7 {[%emt 0:00:
00][%cal Ya6c7,Yc7b5,Yb5c3] Against d5} 17. b4 {[%emt 0:10:02][%cal Yb4b5]} h6
{[%emt 0:10:59]} 18. Bxf6 {[%emt 0:01:02]} Bxf6 {[%emt 0:03:21]} 19. Ne4 {
[%emt 0:00:05]} Be7 {[%emt 0:00:34]} 20. Rdc1 {[%emt 0:03:05]} Nb5 {[%emt 0:05:
18]} 21. Nc5 {[%emt 0:01:51]} Bxc5 {[%emt 0:00:23]} 22. dxc5 {[%emt 0:00:46]}
Nc3 {[%emt 0:04:09]} 23. Bf1 {[%emt 0:06:10] Inhibits Ne2+.} Rd2 {[%emt 0:02:
42]} (23... Bxa2 $2 24. Na3 $18) 24. Ne3 {[%emt 0:00:06][%cal Yc2e3,Ye3c4,
Yc4a5]} Rxa2 {[%emt 0:09:37][%cal Yh8d8]} 25. Kg2 {[%emt 0:05:58] [#]} Rd8 $1 {
[%emt 0:02:52][%cal Yd8d4]} 26. Bc4 {[%emt 0:00:29]} Bxc4 {[%emt 0:00:11]} 27.
Nxc4 {[%emt 0:00:07] [#]} Rxa1 $1 {[%emt 0:00:04]} 28. Rxa1 $17 {[%emt 0:00:34]
Endgame KRN-KRN} Nb5 {[%emt 0:00:03]} 29. Re1 {[%emt 0:01:33]} Rd4 {[%emt 0:00:
16] Prevents Re4.} 30. Na5 {[%emt 0:00:00]} Rxb4 {[%emt 0:01:11] White must
now prevent ...Ra4.} 31. Re7 {[%emt 0:00:00]} Na3 $2 {[%emt 0:03:59]} ({
Black should try} 31... Nd4 $17 {...Ne6 is the strong threat.} 32. Rxf7 Ne6)
32. Rxf7 $11 {[%emt 0:00:59] The position is equal.} Rb5 {[%emt 0:01:43]} 33.
Nxb7 {[%emt 0:00:46]} Nc4 {[%emt 0:00:32]} 34. Nd6+ {[%emt 0:00:45]} Nxd6 {
[%emt 0:00:01]} 35. cxd6 {[%emt 0:00:14] KR-KR} Rb7 $1 {[%emt 0:00:57]} 36.
Rf8+ {[%emt 0:01:13]} Kd7 {[%emt 0:00:04]} 37. Rf7+ {[%emt 0:00:10]} Kc8 {
[%emt 0:00:04]} 38. Rf8+ {[%emt 0:00:29]} Kd7 {[%emt 0:00:00]} 39. Rf7+ {
[%emt 0:00:08]} Kc8 {[%emt 0:00:03]} 40. Rf8+ $1 {[%emt 0:00:15] And White is
the lucky defender. Weighted Error Value: White=0.11 (very precise) /Black=0.
09 (flawless)} 1/2-1/2

[Event "44th Chess Olympiad Open 2022"]
[Site "Chennai"]
[Date "2022.08.02"]
[Round "5.27"]
[White "Korobov, Anton"]
[Black "Kiik, Kalle"]
[Result "1-0"]
[WhiteElo "2692"]
[BlackElo "2365"]
[Annotator "TA"]
[PlyCount "113"]
[EventDate "2022.??.??"]
[TimeControl "60"]

{[%evp 15,113,39,41,37,44,52,66,18,74,38,68,49,48,34,47,50,49,29,18,9,46,27,14,
33,39,12,35,37,15,21,25,33,33,39,27,16,8,20,14,18,11,10,16,12,11,0,23,0,0,0,5,
0,0,-4,0,-41,64,65,63,56,57,62,39,38,366,337,468,439,543,530,545,542,537,531,
521,514,513,498,518,477,544,208,553,519,786,690,1602,1515,1671,1584,12841,
12841,12841,12842,12842,12843,29985,29982,29981,29982]} 1. d4 {[%emt 0:00:05]}
d6 {[%emt 0:00:37]} 2. Nf3 {[%emt 0:00:19]} Nf6 {[%emt 0:00:46]} 3. c4 {
[%emt 0:00:09]} c6 {[%emt 0:01:21]} 4. Nc3 {[%emt 0:00:39]} Bg4 {[%emt 0:02:24]
} 5. e4 {[%emt 0:02:38]} Nbd7 {[%emt 0:02:09]} 6. Be2 {[%emt 0:00:40]} e5 {
[%emt 0:04:42]} 7. O-O {[%emt 0:03:46]} Be7 {[%emt 0:00:58]} 8. Be3 {[%emt 0:
00:00]} O-O {[%emt 0:01:35]} 9. h3 {[%emt 0:03:30] A53: Old Indian Defence
without Nf3.} Bxf3 {[%emt 0:01:17]} 10. Bxf3 {[%emt 0:00:05]} a5 {[%emt 0:00:
00]} 11. Be2 {[%emt 0:03:31]} (11. d5 $14) 11... Re8 {[%emt 0:04:35] [#]} (
11... exd4 $11 {remains equal.} 12. Bxd4 (12. Qxd4 Nc5 $14) 12... b6) 12. Qc2
$146 {[%emt 0:02:30]} ({Predecessor:} 12. f4 Qc7 13. Bf3 Rad8 14. Re1 Nb6 15.
Qe2 Nc8 16. Qf2 b6 17. Kh1 Bf8 18. a3 {1-0 (31) Kleeschaetzky,R (2209)-Kunze,O
Guben 2003}) 12... Qc7 {[%emt 0:11:24]} 13. Rad1 {[%emt 0:00:54] White is more
active.} exd4 {[%emt 0:09:41]} 14. Bxd4 {[%emt 0:00:37]} Nc5 {[%emt 0:00:22]}
15. f4 {[%emt 0:13:45]} Nfd7 {[%emt 0:00:40]} 16. Bf3 {[%emt 0:00:26]} Bf6 {
[%emt 0:04:01]} 17. Bf2 {[%emt 0:02:57]} Re7 {[%emt 0:06:28]} (17... Bxc3 $5
18. bxc3 Re7 $11) 18. Ne2 {[%emt 0:04:21]} Rae8 {[%emt 0:05:59][%cal Rc5e4]}
19. Ng3 {[%emt 0:00:09] Black must now prevent Nf5.} g6 {[%emt 0:01:35]
Prevents Nf5.} 20. Rfe1 {[%emt 0:00:43]} h5 {[%emt 0:11:41]} 21. b3 {[%emt 0:
00:00]} Bg7 {[%emt 0:00:37]} 22. a3 {[%emt 0:02:41]} Bh6 {[%emt 0:04:05]} 23.
b4 {[%emt 0:07:53]} (23. f5 {feels hotter.} Ne5 24. Bxh5 gxh5 25. Nxh5 Ned7 26.
Bxc5 dxc5 27. Qc3) 23... axb4 {[%emt 0:00:11]} 24. axb4 {[%emt 0:00:03]} Na6 {
[%emt 0:07:34]} 25. Ne2 {[%emt 0:13:39]} Nxb4 {[%emt 0:04:10]} 26. Qd2 {
[%emt 0:00:08][%csl Yb4,Yd6]} Na6 {[%emt 0:00:22]} 27. Qxd6 {[%emt 0:00:16]}
Qxd6 {[%emt 0:02:30]} 28. Rxd6 {[%emt 0:00:11]} Ndc5 {[%emt 0:00:23][%cal
Yd7c5,Yc5e6,Ye6g5]} 29. e5 {[%emt 0:05:08]} Bf8 {[%emt 0:04:23]} 30. Red1 {
[%emt 0:05:02]} Rc7 {[%emt 0:00:36]} 31. R6d2 {[%emt 0:00:19]} (31. Rd8 $5 {
[%cal Rd8e8]} Rc8 32. Rxc8 Rxc8 33. f5 $14) 31... Ne6 {[%emt 0:00:35]} 32. f5 {
[%emt 0:09:05]} Ng5 {[%emt 0:02:55]} 33. Bg3 {[%emt 0:00:08][%cal Ye5e6]} Rcc8
{[%emt 0:00:32]} 34. Nf4 {[%emt 0:06:28]} Bc5+ {[%emt 0:00:40]} 35. Kh2 {
[%emt 0:00:38]} Be3 {[%emt 0:00:32]} (35... h4 $15 36. Bf2 (36. Bxh4 Nxf3+ 37.
gxf3 Be3 $17) 36... Bxf2 37. Rxf2 gxf5) 36. Rd3 $36 {[%emt 0:00:57] White is
more active.} Nxf3+ {[%emt 0:01:26]} 37. gxf3 {[%emt 0:00:02]} Bxf4 {[%emt 0:
00:20]} 38. Bxf4 {[%emt 0:00:02]} Nc5 {[%emt 0:00:24] ...g5 is the strong
threat.} 39. Rd6 {[%emt 0:00:24]} Kh7 $2 {[%emt 0:01:09] [#] Loses the game.} (
{Better is} 39... Ra8 $1 $14) 40. Rg1 $1 $18 {[%emt 0:00:58][%cal Rf5g6]} Rg8 {
[%emt 0:00:18]} 41. Be3 {[%emt 0:37:51]} Na6 {[%emt 0:06:01]} 42. Rf6 {[%emt 0:
00:00]} Rg7 {[%emt 0:11:08] [#]} 43. Rxf7 $3 {[%emt 0:00:00]} Rxf7 {[%emt 0:00:
18]} 44. fxg6+ {[%emt 0:00:00]} Kg7 {[%emt 0:00:00]} 45. gxf7+ {[%emt 0:00:00]}
Kxf7 {[%emt 0:00:07] Endgame KRB-KRN} 46. f4 {[%emt 0:00:00][%cal Yf3f4,Yf4f5]}
Ke6 {[%emt 0:01:20]} 47. Rg6+ {[%emt 0:00:00]} Kf5 {[%emt 0:00:16] [#]} 48.
Rf6+ {[%emt 0:00:00]} Ke4 {[%emt 0:00:08]} 49. Bb6 {[%emt 0:00:00]} Kf3 {
[%emt 0:05:18]} (49... Re8 $142 50. e6 Nb4) 50. f5 {[%emt 0:00:00]} Nb4 {
[%emt 0:00:24]} 51. e6 {[%emt 0:00:00][%cal Ye5e6,Ye6e7] Strongly threatening
e7.} Ra8 {[%emt 0:01:01]} 52. e7 {[%emt 0:00:00] Threatens to win with Re6.}
Nd3 {[%emt 0:07:01]} 53. Re6 {[%emt 0:00:00]} c5 {[%emt 0:02:58] [#]} 54. Bxc5
$1 {[%emt 0:00:00]} Ra2+ {[%emt 0:00:36]} 55. Kh1 {[%emt 0:00:00]} Ra1+ {
[%emt 0:00:10]} 56. Bg1 {[%emt 0:00:00]} Nf2+ {[%emt 0:00:54]} 57. Kh2 {
[%emt 0:00:00] Weighted Error Value: White=0.07 (flawless) /Black=0.39} 1-0

[Event "44th Chess Olympiad Open 2022"]
[Site "Chennai"]
[Date "2022.08.02"]
[Round "5.27"]
[White "Kuzubov, Yuriy"]
[Black "Volodin, Aleksandr"]
[Result "1-0"]
[WhiteElo "2642"]
[BlackElo "2454"]
[Annotator "TA"]
[PlyCount "81"]
[EventDate "2022.??.??"]
[TimeControl "60"]

{[%evp 23,81,3,12,15,18,8,17,4,0,0,12,0,4,0,0,-37,0,-35,-68,-62,0,-108,-105,
-96,-111,-102,-98,-91,-79,-104,0,0,0,0,50,21,166,180,259,245,245,212,195,100,
101,97,102,20,193,205,235,229,482,476,1169,1160,29989,29990,29990,29991]} 1. c4
{[%emt 0:00:04]} e6 {[%emt 0:00:26]} 2. Nc3 {[%emt 0:00:28]} d5 {[%emt 0:00:41]
} 3. d4 {[%emt 0:00:08]} Nf6 {[%emt 0:01:01]} 4. cxd5 {[%emt 0:00:25]} exd5 {
[%emt 0:00:05]} 5. Bg5 {[%emt 0:00:06]} c6 {[%emt 0:00:54]} 6. e3 {[%emt 0:00:
00]} Be7 {[%emt 0:01:04]} 7. Bd3 {[%emt 0:00:10]} Nbd7 {[%emt 0:01:05]} 8. Qc2
{[%emt 0:00:40]} Nh5 {[%emt 0:04:52]} 9. Bxe7 {[%emt 0:05:51]} Qxe7 {[%emt 0:
00:00]} 10. Nge2 {[%emt 0:00:05]} g6 {[%emt 0:01:38]} 11. O-O {[%emt 0:00:08]}
O-O {[%emt 0:01:57]} 12. Rae1 {[%emt 0:00:09]} Ndf6 {[%emt 0:01:14]} 13. Nc1 {
[%emt 0:00:31] D36: Queen's Gambit Declined: Exchange Variation: Main line (5
Bg5 c6 6 Qc2).} b6 {[%emt 0:03:55] Recently 13...Be6 got a lot of attention.}
14. f3 {[%emt 0:15:09]} c5 {[%emt 0:02:49] Hoping for ...c4.} 15. Qf2 {[%emt 0:
00:00] The position is equal.} Bb7 {[%emt 0:07:40] [#]} 16. a3 $146 {[%emt 0:
00:00]} ({Predecessor:} 16. Rd1 cxd4 17. exd4 Nf4 18. Rfe1 Qd8 19. Bf1 Re8 20.
Rxe8+ Nxe8 21. Nd3 Nxd3 22. Bxd3 {½-½ (53) Grachev,B (2670)-Zubov,A (2607)
Jerusalem 2015}) 16... Rac8 {[%emt 0:02:58]} 17. Qh4 {[%emt 0:05:34]} Rfe8 {
[%emt 0:03:46]} 18. Kh1 {[%emt 0:18:24]} Ng7 {[%emt 0:07:11]} 19. Bb5 {[%emt 0:
00:00]} Bc6 {[%emt 0:03:34]} (19... Nf5 $5 {[%cal Rf5h4]} 20. Qf2 Bc6 $15) 20.
Ba6 {[%emt 0:14:11] And now e4 would win.} Nf5 {[%emt 0:07:01][%csl Ye3,Yh4]}
21. Qf2 {[%emt 0:01:19]} Rc7 {[%emt 0:03:00]} (21... Rcd8 $1 $15 22. Nd1 h5)
22. e4 {[%emt 0:09:31]} (22. Re2 $11) 22... dxe4 $17 {[%emt 0:05:51]} 23. fxe4
{[%emt 0:00:06]} Ng4 $1 {[%emt 0:21:31]} (23... Nxe4 24. Qf4 cxd4 25. Nxe4 Bxe4
26. Rxe4 $1 Qxe4 27. Qxc7 $16) (23... Bxe4 24. Bd3 Nd6 25. Qxf6 $16) 24. Qf4 {
[%emt 0:00:31] Black must now prevent d5.} cxd4 {[%emt 0:08:46]} 25. Nb5 {
[%emt 0:01:39] [#]} Rd7 {[%emt 0:00:01]} 26. Qxg4 {[%emt 0:02:57] Strongly
threatening Rxf5.} Ne3 {[%emt 0:00:44]} (26... Bxe4 $17 27. Rg1 (27. Rxf5 $2
Bxf5 28. Rxe7 Rdxe7 $19) 27... Ne3) 27. Rxe3 $1 $11 {[%emt 0:01:32]} dxe3 {
[%emt 0:00:02]} 28. Nc3 {[%emt 0:00:15]} h5 {[%emt 0:06:26]} (28... b5 $11) 29.
Qf4 {[%emt 0:02:09]} Bxe4 {[%emt 0:01:46]} (29... b5 $11 {and Black has
nothing to worry.}) 30. Bb5 $36 {[%emt 0:00:44] Skewer. Keeping Black busy.}
Rd4 {[%emt 0:00:26]} (30... Bb7 $142) 31. Kg1 {[%emt 0:00:18] The board is on
fire.} Red8 {[%emt 0:01:55][%cal Ye4g2] ...Bxg2! is the strong threat.} 32.
Qxe3 {[%emt 0:01:38] aiming for Nb3.} f5 {[%emt 0:01:18] [#]} 33. Bc6 {[%emt 0:
03:20]} ({White should try} 33. N1e2 $1 $18 {[%cal Re2d4]} R4d6 34. Ng3) 33...
Kg7 $16 {[%emt 0:00:47][%cal Yd4d3]} 34. Bxe4 {[%emt 0:00:39]} fxe4 {[%emt 0:
00:07]} 35. h3 {[%emt 0:00:35]} (35. N1e2 $16 Rd3 36. Qxe4 Qxe4 37. Nxe4) 35...
a5 $2 {[%emt 0:00:52]} (35... Rd2 $1 $11 {and Black stays safe.}) 36. N1e2 $18
{[%emt 0:00:34][%cal Yc1e2,Ye2f4,Yf4h5,Yh5f6]} Rd2 {[%emt 0:00:27]} 37. Nf4 {
[%emt 0:00:53]} ({Inferior is} 37. Nxe4 R8d3 38. Qf2 Rxb2 $11) ({Don't take} 
37. Qxb6 R8d6 38. Qxa5 Rxb2) 37... R8d4 {[%emt 0:00:33]} (37... R2d6 38. Qxe4 (
38. Nxe4 Rd1 $18) 38... Qxe4 39. Nxe4 Rc6) 38. Qg3 {[%emt 0:00:32]} Qd6 {
[%emt 0:00:32]} (38... Rd6 $142 39. Nxh5+ Kh8) 39. Qg5 {[%emt 0:00:16]
Intending Nxh5+ and mate.} Rxb2 {[%emt 0:00:27]} 40. Nxh5+ {[%emt 0:00:19]
Pair of Knights!} Kg8 {[%emt 0:00:28]} 41. Nf6+ {[%emt 0:30:30] Weighted Error
Value: White=0.21 (precise) /Black=0.60} 1-0

[Event "44th Chess Olympiad Open 2022"]
[Site "Chennai"]
[Date "2022.08.02"]
[Round "5.27"]
[White "Chukavin, Kirill"]
[Black "Volokitin, Andrei"]
[Result "1/2-1/2"]
[WhiteElo "2418"]
[BlackElo "2674"]
[Annotator "TA"]
[PlyCount "82"]
[EventDate "2022.??.??"]
[TimeControl "60"]

{[%evp 18,82,20,13,29,20,46,28,30,18,14,15,13,22,18,15,27,19,37,0,16,15,10,14,
18,14,32,26,33,21,33,25,28,29,59,0,0,0,18,0,0,0,0,0,0,0,0,0,0,0,0,0,0,0,0,0,0,
0,0,0,0,0,0,0,0,0,0]} 1. e4 {[%emt 0:00:11]} c5 {[%emt 0:00:08]} 2. Nf3 {
[%emt 0:00:17]} d6 {[%emt 0:00:10]} 3. d4 {[%emt 0:00:23]} cxd4 {[%emt 0:00:07]
} 4. Nxd4 {[%emt 0:00:04]} Nf6 {[%emt 0:00:05]} 5. Nc3 {[%emt 0:00:06]} Nc6 {
[%emt 0:00:05]} 6. Be2 {[%emt 0:04:49]} e6 {[%emt 0:01:23]} 7. Be3 {[%emt 0:00:
00]} Be7 {[%emt 0:02:31]} 8. O-O {[%emt 0:00:10]} O-O {[%emt 0:00:12]} 9. f4 {
[%emt 0:02:19]} Bd7 {[%emt 0:00:36]} 10. Nb3 {[%emt 0:09:18] 10.Kh1 gains
popularity.} e5 {[%emt 0:05:42] B83: Sicilian Scheveningen: 6 Be2, lines
without ...a6.} 11. f5 {[%emt 0:12:32]} a6 {[%emt 0:21:38]} 12. Bf3 {[%emt 0:
00:00]} b5 {[%emt 0:06:09] White has an edge.} 13. Qd2 {[%emt 0:06:29] [#]} a5
$146 {[%emt 0:18:51]} ({Predecessor:} 13... b4 14. Ne2 a5 15. g4 h6 16. Rad1
Nh7 17. Ng3 Qc7 18. Nh5 Rfc8 19. Nc1 Bg5 {0-1 (37) Ojeda,J (2090)-Martinez
Romero,M (2429) Palmira 2019}) 14. a4 {[%emt 0:14:29]} (14. Nxb5 a4 $15) 14...
bxa4 {[%emt 0:04:09]} 15. Nxa4 {[%emt 0:00:50]} Rb8 {[%emt 0:00:14]} 16. Nc3 {
[%emt 0:07:47]} h6 {[%emt 0:08:36]} 17. Kh1 {[%emt 0:05:53]} Re8 {[%emt 0:00:
00]} 18. Nd5 {[%emt 0:07:37]} (18. g4 $5 {[%cal Rf1d1]}) 18... Nxd5 {[%emt 0:
00:00]} 19. exd5 {[%emt 0:00:06]} (19. Qxd5 a4 20. Bh5 (20. Rxa4 Nb4 $17) 20...
Rf8 21. Rxa4 Nb4 22. Rxb4 Rxb4 $17) 19... Nd4 {[%emt 0:00:03]} ({Don't take} 
19... Nb4 20. Nxa5 e4 21. Be2 $16 (21. Bxe4 Bf6 $15)) 20. Nxd4 {[%emt 0:04:47]}
exd4 {[%emt 0:00:02]} 21. Bxd4 {[%emt 0:00:06] Black must now prevent f6.} Bf6
{[%emt 0:01:55]} (21... Bg5 $5 {[%cal Rg5d2]} 22. Qxa5 Qxa5 23. Rxa5 Bxf5 $11)
22. Bxf6 {[%emt 0:04:18]} Qxf6 {[%emt 0:00:02]} 23. b3 {[%emt 0:00:11]} ({
Don't play} 23. Rxa5 Rxb2 24. g4 h5 $11) 23... Rb4 {[%emt 0:05:25]} 24. Rxa5 {
[%emt 0:01:17]} Rd4 {[%emt 0:00:05]} 25. Qf2 {[%emt 0:00:29] Black should
prevent g4.} Bxf5 {[%emt 0:00:09]} 26. Ra4 {[%emt 0:04:53]} (26. Raa1 $14)
26... Rxa4 $11 {[%emt 0:00:59] The position is equal.} 27. bxa4 {[%emt 0:04:53]
} Ra8 {[%emt 0:04:52]} 28. Be2 {[%emt 0:00:00]} Bxc2 {[%emt 0:00:28] ...Qxf2
is the strong threat.} 29. Qxf6 {[%emt 0:00:00]} gxf6 {[%emt 0:00:02] Endgame
KRB-KRB} 30. Bb5 {[%emt 0:00:00]} Kg7 {[%emt 0:00:46]} 31. Bc6 {[%emt 0:00:04]}
Ra5 {[%emt 0:00:13]} 32. Kg1 {[%emt 0:01:16]} f5 {[%emt 0:00:00]} 33. Kf2 {
[%emt 0:00:22]} Kf6 {[%emt 0:00:34]} 34. Ke3 {[%emt 0:00:47]} Ke5 {[%emt 0:00:
22]} 35. g3 {[%emt 0:00:59]} Be4 {[%emt 0:00:47]} 36. Rd1 {[%emt 0:00:00]} Rc5
{[%emt 0:00:31]} 37. Ra1 $1 {[%emt 0:00:26]} Rc3+ {[%emt 0:00:18]} 38. Kd2 {
[%emt 0:00:42]} Rc2+ {[%emt 0:01:10]} 39. Ke3 {[%emt 0:00:34]} Rc3+ {[%emt 0:
00:32]} 40. Kd2 {[%emt 0:00:35]} Rc2+ {[%emt 0:00:26]} 41. Ke3 {[%emt 0:06:52]}
Rc3+ {[%emt 0:24:59] Weighted Error Value: White=0.06 (flawless) /Black=0.03 
(flawless)} 1/2-1/2